Workbook

Sheet Sheet1
A1: 普定县2024年面向社会公开招聘城市社区工作者面试成绩及总成绩
A2: 序号 | B2: 姓名 | C2: 面试准考证号 | D2: 报考单位及代码 | E2: 报考岗位及代码 | F2: 招聘计划数 | G2: 面试考场号 | H2: 笔试成绩 | I2: 笔试折算后成绩 | J2: 面试成绩 | K2: 面试折算后成绩 | L2: 总成绩
A3: 1 | B3: 徐佳 | C3: 202410260101 | D3: 301普定县定南街道办事处 | E3: 01全日制社区专职工作人员 | F3: 3 | G3: 第一考场 | H3: 114.10 | I3: =H3/1.5*60% -> 45.64 | J3: 85.80 | K3: =J3*40% -> 34.32 | L3: =I3+K3 -> 79.96
A4: 2 | B4: 胡鸿 | C4: 202410260104 | D4: 301普定县定南街道办事处 | E4: 01全日制社区专职工作人员 | F4: 3 | G4: 第一考场 | H4: 108.81 | I4: =H4/1.5*60% -> 43.52 | J4: 78.60 | K4: =J4*40% -> 31.44 | L4: =I4+K4 -> 74.96
A5: 3 | B5: 杜蝶 | C5: 202410260102 | D5: 301普定县定南街道办事处 | E5: 01全日制社区专职工作人员 | F5: 3 | G5: 第一考场 | H5: 112.21 | I5: =H5/1.5*60% -> 44.88 | J5: 72.40 | K5: =J5*40% -> 28.96 | L5: =I5+K5 -> 73.84
A6: 4 | B6: 王丰勇 | C6: 202410260103 | D6: 301普定县定南街道办事处 | E6: 01全日制社区专职工作人员 | F6: 3 | G6: 第一考场 | H6: 111.20 | I6: =H6/1.5*60% -> 44.48 | J6: 72.80 | K6: =J6*40% -> 29.12 | L6: =I6+K6 -> 73.60
A7: 5 | B7: 涂倩 | C7: 202410260108 | D7: 301普定县定南街道办事处 | E7: 01全日制社区专职工作人员 | F7: 3 | G7: 第一考场 | H7: 105.68 | I7: =H7/1.5*60% -> 42.27 | J7: 76.20 | K7: =J7*40% -> 30.48 | L7: =I7+K7 -> 72.75
A8: 6 | B8: 吴姣 | C8: 202410260107 | D8: 301普定县定南街道办事处 | E8: 01全日制社区专职工作人员 | F8: 3 | G8: 第一考场 | H8: 106.08 | I8: =H8/1.5*60% -> 42.43 | J8: 72.00 | K8: =J8*40% -> 28.80 | L8: =I8+K8 -> 71.23
A9: 7 | B9: 伍忠雨 | C9: 202410260106 | D9: 301普定县定南街道办事处 | E9: 01全日制社区专职工作人员 | F9: 3 | G9: 第一考场 | H9: 106.74 | I9: =H9/1.5*60% -> 42.70 | J9: 71.00 | K9: =J9*40% -> 28.40 | L9: =I9+K9 -> 71.10
A10: 8 | B10: 上官大邦 | C10: 202410260109 | D10: 301普定县定南街道办事处 | E10: 01全日制社区专职工作人员 | F10: 3 | G10: 第一考场 | H10: 104.92 | I10: =H10/1.5*60% -> 41.97 | J10: 72.40 | K10: =J10*40% -> 28.96 | L10: =I10+K10 -> 70.93
A11: 9 | B11: 上官发航 | C11: 202410260105 | D11: 301普定县定南街道办事处 | E11: 01全日制社区专职工作人员 | F11: 3 | G11: 第一考场 | H11: 107.37 | I11: =H11/1.5*60% -> 42.95 | J11: 67.40 | K11: =J11*40% -> 26.96 | L11: =I11+K11 -> 69.91
A12: 10 | B12: 曾雕 | C12: 202410260110 | D12: 301普定县定南街道办事处 | E12: 02全日制社区专职工作人员 | F12: 2 | G12: 第一考场 | H12: 106.35 | I12: =H12/1.5*60% -> 42.54 | J12: 81.20 | K12: =J12*40% -> 32.48 | L12: =I12+K12 -> 75.02
A13: 11 | B13: 杨晨 | C13: 202410260112 | D13: 301普定县定南街道办事处 | E13: 02全日制社区专职工作人员 | F13: 2 | G13: 第一考场 | H13: 103.18 | I13: =H13/1.5*60% -> 41.27 | J13: 84.20 | K13: =J13*40% -> 33.68 | L13: =I13+K13 -> 74.95
A14: 12 | B14: 侯云华 | C14: 202410260111 | D14: 301普定县定南街道办事处 | E14: 02全日制社区专职工作人员 | F14: 2 | G14: 第一考场 | H14: 105.70 | I14: =H14/1.5*60% -> 42.28 | J14: 81.00 | K14: =J14*40% -> 32.40 | L14: =I14+K14 -> 74.68
A15: 13 | B15: 李升敏 | C15: 202410260113 | D15: 301普定县定南街道办事处 | E15: 02全日制社区专职工作人员 | F15: 2 | G15: 第一考场 | H15: 102.70 | I15: =H15/1.5*60% -> 41.08 | J15: 70.20 | K15: =J15*40% -> 28.08 | L15: =I15+K15 -> 69.16
A16: 14 | B16: 皮莉 | C16: 202410260114 | D16: 301普定县定南街道办事处 | E16: 02全日制社区专职工作人员 | F16: 2 | G16: 第一考场 | H16: 98.62 | I16: =H16/1.5*60% -> 39.45 | J16: 73.80 | K16: =J16*40% -> 29.52 | L16: =I16+K16 -> 68.97
A17: 15 | B17: 刘晓晓 | C17: 202410260115 | D17: 301普定县定南街道办事处 | E17: 02全日制社区专职工作人员 | F17: 2 | G17: 第一考场 | H17: 97.86 | I17: =H17/1.5*60% -> 39.14 | J17: 71.80 | K17: =J17*40% -> 28.72 | L17: =I17+K17 -> 67.86
A18: 16 | B18: 甘雄 | C18: 202410260116 | D18: 302普定县黄桶街道办事处 | E18: 01全日制社区专职工作人员 | F18: 1 | G18: 第一考场 | H18: 108.55 | I18: =H18/1.5*60% -> 43.42 | J18: 83.20 | K18: =J18*40% -> 33.28 | L18: =I18+K18 -> 76.70
A19: 17 | B19: 卢鹏 | C19: 202410260118 | D19: 302普定县黄桶街道办事处 | E19: 01全日制社区专职工作人员 | F19: 1 | G19: 第一考场 | H19: 103.85 | I19: =H19/1.5*60% -> 41.54 | J19: 40.40 | K19: =J19*40% -> 16.16 | L19: =I19+K19 -> 57.70
A20: 18 | B20: 杨凡 | C20: 202410260117 | D20: 302普定县黄桶街道办事处 | E20: 01全日制社区专职工作人员 | F20: 1 | G20: 第一考场 | H20: 106.81 | I20: =H20/1.5*60% -> 42.72 | J20: 缺考 | K20: =J20 -> 缺考 | L20: =I20 -> 42.72
A21: 19 | B21: 马举香 | C21: 202410260201 | D21: 303普定县玉秀街道办事处 | E21: 01全日制社区专职工作人员 | F21: 8 | G21: 第二考场 | H21: 117.69 | I21: =H21/1.5*60% -> 47.08 | J21: 76.20 | K21: =J21*40% -> 30.48 | L21: =I21+K21 -> 77.56
A22: 20 | B22: 唐行 | C22: 202410260204 | D22: 303普定县玉秀街道办事处 | E22: 01全日制社区专职工作人员 | F22: 8 | G22: 第二考场 | H22: 110.97 | I22: =H22/1.5*60% -> 44.39 | J22: 80.80 | K22: =J22*40% -> 32.32 | L22: =I22+K22 -> 76.71
A23: 21 | B23: 杨平 | C23: 202410260202 | D23: 303普定县玉秀街道办事处 | E23: 01全日制社区专职工作人员 | F23: 8 | G23: 第二考场 | H23: 116.66 | I23: =H23/1.5*60% -> 46.66 | J23: 73.80 | K23: =J23*40% -> 29.52 | L23: =I23+K23 -> 76.18
A24: 22 | B24: 张凯 | C24: 202410260203 | D24: 303普定县玉秀街道办事处 | E24: 01全日制社区专职工作人员 | F24: 8 | G24: 第二考场 | H24: 111.80 | I24: =H24/1.5*60% -> 44.72 | J24: 76.80 | K24: =J24*40% -> 30.72 | L24: =I24+K24 -> 75.44
A25: 23 | B25: 罗枢纽 | C25: 202410260207 | D25: 303普定县玉秀街道办事处 | E25: 01全日制社区专职工作人员 | F25: 8 | G25: 第二考场 | H25: 109.00 | I25: =H25/1.5*60% -> 43.60 | J25: 79.40 | K25: =J25*40% -> 31.76 | L25: =I25+K25 -> 75.36
A26: 24 | B26: 刘家文 | C26: 202410260220 | D26: 303普定县玉秀街道办事处 | E26: 01全日制社区专职工作人员 | F26: 8 | G26: 第二考场 | H26: 104.52 | I26: =H26/1.5*60% -> 41.81 | J26: 82.20 | K26: =J26*40% -> 32.88 | L26: =I26+K26 -> 74.69
A27: 25 | B27: 张立 | C27: 202410260205 | D27: 303普定县玉秀街道办事处 | E27: 01全日制社区专职工作人员 | F27: 8 | G27: 第二考场 | H27: 109.91 | I27: =H27/1.5*60% -> 43.96 | J27: 76.60 | K27: =J27*40% -> 30.64 | L27: =I27+K27 -> 74.60
A28: 26 | B28: 陈恋 | C28: 202410260210 | D28: 303普定县玉秀街道办事处 | E28: 01全日制社区专职工作人员 | F28: 8 | G28: 第二考场 | H28: 108.00 | I28: =H28/1.5*60% -> 43.20 | J28: 78.00 | K28: =J28*40% -> 31.20 | L28: =I28+K28 -> 74.40
A29: 27 | B29: 伍点点 | C29: 202410260206 | D29: 303普定县玉秀街道办事处 | E29: 01全日制社区专职工作人员 | F29: 8 | G29: 第二考场 | H29: 109.72 | I29: =H29/1.5*60% -> 43.89 | J29: 76.20 | K29: =J29*40% -> 30.48 | L29: =I29+K29 -> 74.37
A30: 28 | B30: 李曼艳 | C30: 202410260211 | D30: 303普定县玉秀街道办事处 | E30: 01全日制社区专职工作人员 | F30: 8 | G30: 第二考场 | H30: 107.80 | I30: =H30/1.5*60% -> 43.12 | J30: 76.60 | K30: =J30*40% -> 30.64 | L30: =I30+K30 -> 73.76
A31: 29 | B31: 张丹 | C31: 202410260216 | D31: 303普定县玉秀街道办事处 | E31: 01全日制社区专职工作人员 | F31: 8 | G31: 第二考场 | H31: 105.88 | I31: =H31/1.5*60% -> 42.35 | J31: 78.40 | K31: =J31*40% -> 31.36 | L31: =I31+K31 -> 73.71
A32: 30 | B32: 张岚 | C32: 202410260213 | D32: 303普定县玉秀街道办事处 | E32: 01全日制社区专职工作人员 | F32: 8 | G32: 第二考场 | H32: 107.14 | I32: =H32/1.5*60% -> 42.86 | J32: 77.00 | K32: =J32*40% -> 30.80 | L32: =I32+K32 -> 73.66
A33: 31 | B33: 肖卫东 | C33: 202410260224 | D33: 303普定县玉秀街道办事处 | E33: 01全日制社区专职工作人员 | F33: 8 | G33: 第二考场 | H33: 103.18 | I33: =H33/1.5*60% -> 41.27 | J33: 80.40 | K33: =J33*40% -> 32.16 | L33: =I33+K33 -> 73.43
A34: 32 | B34: 袁家恒 | C34: 202410260208 | D34: 303普定县玉秀街道办事处 | E34: 01全日制社区专职工作人员 | F34: 8 | G34: 第二考场 | H34: 108.92 | I34: =H34/1.5*60% -> 43.57 | J34: 74.60 | K34: =J34*40% -> 29.84 | L34: =I34+K34 -> 73.41
A35: 33 | B35: 郭丁萍 | C35: 202410260212 | D35: 303普定县玉秀街道办事处 | E35: 01全日制社区专职工作人员 | F35: 8 | G35: 第二考场 | H35: 107.52 | I35: =H35/1.5*60% -> 43.01 | J35: 75.60 | K35: =J35*40% -> 30.24 | L35: =I35+K35 -> 73.25
A36: 34 | B36: 华国新 | C36: 202410260217 | D36: 303普定县玉秀街道办事处 | E36: 01全日制社区专职工作人员 | F36: 8 | G36: 第二考场 | H36: 105.81 | I36: =H36/1.5*60% -> 42.32 | J36: 77.00 | K36: =J36*40% -> 30.80 | L36: =I36+K36 -> 73.12
A37: 35 | B37: 吴明菊 | C37: 202410260214 | D37: 303普定县玉秀街道办事处 | E37: 01全日制社区专职工作人员 | F37: 8 | G37: 第二考场 | H37: 106.88 | I37: =H37/1.5*60% -> 42.75 | J37: 73.00 | K37: =J37*40% -> 29.20 | L37: =I37+K37 -> 71.95
A38: 36 | B38: 任荣易 | C38: 202410260222 | D38: 303普定县玉秀街道办事处 | E38: 01全日制社区专职工作人员 | F38: 8 | G38: 第二考场 | H38: 104.12 | I38: =H38/1.5*60% -> 41.65 | J38: 73.80 | K38: =J38*40% -> 29.52 | L38: =I38+K38 -> 71.17
A39: 37 | B39: 彭贵迅 | C39: 202410260219 | D39: 303普定县玉秀街道办事处 | E39: 01全日制社区专职工作人员 | F39: 8 | G39: 第二考场 | H39: 105.46 | I39: =H39/1.5*60% -> 42.18 | J39: 67.80 | K39: =J39*40% -> 27.12 | L39: =I39+K39 -> 69.30
A40: 38 | B40: 王永波 | C40: 202410260215 | D40: 303普定县玉秀街道办事处 | E40: 01全日制社区专职工作人员 | F40: 8 | G40: 第二考场 | H40: 106.57 | I40: =H40/1.5*60% -> 42.63 | J40: 66.40 | K40: =J40*40% -> 26.56 | L40: =I40+K40 -> 69.19
A41: 39 | B41: 彭蒙蒙 | C41: 202410260223 | D41: 303普定县玉秀街道办事处 | E41: 01全日制社区专职工作人员 | F41: 8 | G41: 第二考场 | H41: 103.50 | I41: =H41/1.5*60% -> 41.40 | J41: 69.00 | K41: =J41*40% -> 27.60 | L41: =I41+K41 -> 69.00
A42: 40 | B42: 吴松 | C42: 202410260209 | D42: 303普定县玉秀街道办事处 | E42: 01全日制社区专职工作人员 | F42: 8 | G42: 第二考场 | H42: 108.63 | I42: =H42/1.5*60% -> 43.45 | J42: 缺考 | K42: =J42 -> 缺考 | L42: =I42 -> 43.45
A43: 41 | B43: 谢福雪 | C43: 202410260218 | D43: 303普定县玉秀街道办事处 | E43: 01全日制社区专职工作人员 | F43: 8 | G43: 第二考场 | H43: 105.67 | I43: =H43/1.5*60% -> 42.27 | J43: 缺考 | K43: =J43 -> 缺考 | L43: =I43 -> 42.27
A44: 42 | B44: 伍梨萍 | C44: 202410260221 | D44: 303普定县玉秀街道办事处 | E44: 01全日制社区专职工作人员 | F44: 8 | G44: 第二考场 | H44: 104.29 | I44: =H44/1.5*60% -> 41.72 | J44: 缺考 | K44: =J44 -> 缺考 | L44: =I44 -> 41.72
A45: 43 | B45: 洪子翔 | C45: 202410260302 | D45: 303普定县玉秀街道办事处 | E45: 02全日制社区专职工作人员 | F45: 8 | G45: 第三考场 | H45: 114.37 | I45: =H45/1.5*60% -> 45.75 | J45: 83.40 | K45: =J45*40% -> 33.36 | L45: =I45+K45 -> 79.11
A46: 44 | B46: 孙权 | C46: 202410260304 | D46: 303普定县玉秀街道办事处 | E46: 02全日制社区专职工作人员 | F46: 8 | G46: 第三考场 | H46: 112.93 | I46: =H46/1.5*60% -> 45.17 | J46: 79.80 | K46: =J46*40% -> 31.92 | L46: =I46+K46 -> 77.09
A47: 45 | B47: 牛晓芳 | C47: 202410260303 | D47: 303普定县玉秀街道办事处 | E47: 02全日制社区专职工作人员 | F47: 8 | G47: 第三考场 | H47: 113.16 | I47: =H47/1.5*60% -> 45.26 | J47: 79.00 | K47: =J47*40% -> 31.60 | L47: =I47+K47 -> 76.86
A48: 46 | B48: 蒋良俊 | C48: 202410260310 | D48: 303普定县玉秀街道办事处 | E48: 02全日制社区专职工作人员 | F48: 8 | G48: 第三考场 | H48: 107.21 | I48: =H48/1.5*60% -> 42.88 | J48: 84.40 | K48: =J48*40% -> 33.76 | L48: =I48+K48 -> 76.64
A49: 47 | B49: 熊凯 | C49: 202410260301 | D49: 303普定县玉秀街道办事处 | E49: 02全日制社区专职工作人员 | F49: 8 | G49: 第三考场 | H49: 115.94 | I49: =H49/1.5*60% -> 46.38 | J49: 75.00 | K49: =J49*40% -> 30.00 | L49: =I49+K49 -> 76.38
A50: 48 | B50: 温家玉 | C50: 202410260305 | D50: 303普定县玉秀街道办事处 | E50: 02全日制社区专职工作人员 | F50: 8 | G50: 第三考场 | H50: 111.17 | I50: =H50/1.5*60% -> 44.47 | J50: 79.40 | K50: =J50*40% -> 31.76 | L50: =I50+K50 -> 76.23
A51: 49 | B51: 杨奇龙 | C51: 202410260306 | D51: 303普定县玉秀街道办事处 | E51: 02全日制社区专职工作人员 | F51: 8 | G51: 第三考场 | H51: 109.40 | I51: =H51/1.5*60% -> 43.76 | J51: 79.60 | K51: =J51*40% -> 31.84 | L51: =I51+K51 -> 75.60
A52: 50 | B52: 褚仁斌 | C52: 202410260315 | D52: 303普定县玉秀街道办事处 | E52: 02全日制社区专职工作人员 | F52: 8 | G52: 第三考场 | H52: 104.54 | I52: =H52/1.5*60% -> 41.82 | J52: 82.40 | K52: =J52*40% -> 32.96 | L52: =I52+K52 -> 74.78
A53: 51 | B53: 刘飞皇 | C53: 202410260313 | D53: 303普定县玉秀街道办事处 | E53: 02全日制社区专职工作人员 | F53: 8 | G53: 第三考场 | H53: 105.18 | I53: =H53/1.5*60% -> 42.07 | J53: 81.40 | K53: =J53*40% -> 32.56 | L53: =I53+K53 -> 74.63
A54: 52 | B54: 钟发伦 | C54: 202410260307 | D54: 303普定县玉秀街道办事处 | E54: 02全日制社区专职工作人员 | F54: 8 | G54: 第三考场 | H54: 107.86 | I54: =H54/1.5*60% -> 43.14 | J54: 77.80 | K54: =J54*40% -> 31.12 | L54: =I54+K54 -> 74.26
A55: 53 | B55: 王蓉 | C55: 202410260311 | D55: 303普定县玉秀街道办事处 | E55: 02全日制社区专职工作人员 | F55: 8 | G55: 第三考场 | H55: 106.47 | I55: =H55/1.5*60% -> 42.59 | J55: 78.80 | K55: =J55*40% -> 31.52 | L55: =I55+K55 -> 74.11
A56: 54 | B56: 肖云菊 | C56: 202410260321 | D56: 303普定县玉秀街道办事处 | E56: 02全日制社区专职工作人员 | F56: 8 | G56: 第三考场 | H56: 103.82 | I56: =H56/1.5*60% -> 41.53 | J56: 80.80 | K56: =J56*40% -> 32.32 | L56: =I56+K56 -> 73.85
A57: 55 | B57: 廖贤敏 | C57: 202410260319 | D57: 303普定县玉秀街道办事处 | E57: 02全日制社区专职工作人员 | F57: 8 | G57: 第三考场 | H57: 104.11 | I57: =H57/1.5*60% -> 41.64 | J57: 79.60 | K57: =J57*40% -> 31.84 | L57: =I57+K57 -> 73.48
A58: 56 | B58: 邱天 | C58: 202410260322 | D58: 303普定县玉秀街道办事处 | E58: 02全日制社区专职工作人员 | F58: 8 | G58: 第三考场 | H58: 103.68 | I58: =H58/1.5*60% -> 41.47 | J58: 79.60 | K58: =J58*40% -> 31.84 | L58: =I58+K58 -> 73.31
A59: 57 | B59: 王康 | C59: 202410260308 | D59: 303普定县玉秀街道办事处 | E59: 02全日制社区专职工作人员 | F59: 8 | G59: 第三考场 | H59: 107.74 | I59: =H59/1.5*60% -> 43.10 | J59: 75.40 | K59: =J59*40% -> 30.16 | L59: =I59+K59 -> 73.26
A60: 58 | B60: 刘健 | C60: 202410260318 | D60: 303普定县玉秀街道办事处 | E60: 02全日制社区专职工作人员 | F60: 8 | G60: 第三考场 | H60: 104.38 | I60: =H60/1.5*60% -> 41.75 | J60: 76.40 | K60: =J60*40% -> 30.56 | L60: =I60+K60 -> 72.31
A61: 59 | B61: 陈小丽 | C61: 202410260320 | D61: 303普定县玉秀街道办事处 | E61: 02全日制社区专职工作人员 | F61: 8 | G61: 第三考场 | H61: 103.84 | I61: =H61/1.5*60% -> 41.54 | J61: 76.20 | K61: =J61*40% -> 30.48 | L61: =I61+K61 -> 72.02
A62: 60 | B62: 刘松坪 | C62: 202410260323 | D62: 303普定县玉秀街道办事处 | E62: 02全日制社区专职工作人员 | F62: 8 | G62: 第三考场 | H62: 103.55 | I62: =H62/1.5*60% -> 41.42 | J62: 68.40 | K62: =J62*40% -> 27.36 | L62: =I62+K62 -> 68.78
A63: 61 | B63: 冯雨点 | C63: 202410260317 | D63: 303普定县玉秀街道办事处 | E63: 02全日制社区专职工作人员 | F63: 8 | G63: 第三考场 | H63: 104.48 | I63: =H63/1.5*60% -> 41.79 | J63: 61.80 | K63: =J63*40% -> 24.72 | L63: =I63+K63 -> 66.51
A64: 62 | B64: 王颖 | C64: 202410260312 | D64: 303普定县玉秀街道办事处 | E64: 02全日制社区专职工作人员 | F64: 8 | G64: 第三考场 | H64: 105.94 | I64: =H64/1.5*60% -> 42.38 | J64: 60.20 | K64: =J64*40% -> 24.08 | L64: =I64+K64 -> 66.46
A65: 63 | B65: 雷元香 | C65: 202410260324 | D65: 303普定县玉秀街道办事处 | E65: 02全日制社区专职工作人员 | F65: 8 | G65: 第三考场 | H65: 103.48 | I65: =H65/1.5*60% -> 41.39 | J65: 60.40 | K65: =J65*40% -> 24.16 | L65: =I65+K65 -> 65.55
A66: 64 | B66: 姚青青 | C66: 202410260309 | D66: 303普定县玉秀街道办事处 | E66: 02全日制社区专职工作人员 | F66: 8 | G66: 第三考场 | H66: 107.44 | I66: =H66/1.5*60% -> 42.98 | J66: 缺考 | K66: =J66 -> 缺考 | L66: =I66 -> 42.98
A67: 65 | B67: 潘本栋 | C67: 202410260314 | D67: 303普定县玉秀街道办事处 | E67: 02全日制社区专职工作人员 | F67: 8 | G67: 第三考场 | H67: 104.87 | I67: =H67/1.5*60% -> 41.95 | J67: 缺考 | K67: =J67 -> 缺考 | L67: =I67 -> 41.95
A68: 66 | B68: 尹笃西 | C68: 202410260316 | D68: 303普定县玉秀街道办事处 | E68: 02全日制社区专职工作人员 | F68: 8 | G68: 第三考场 | H68: 104.52 | I68: =H68/1.5*60% -> 41.81 | J68: 缺考 | K68: =J68 -> 缺考 | L68: =I68 -> 41.81
